Workbook

Sheet Tlačivo na zostavy
A2: Družstvo č. 1. | C2: TJ Rakovice | G2: Družstvo č. 4. | I2: MKK Slovan Galanta | N2: Tu len vymeniť názvy družstiev.
A3: Priezvisko, meno | D3: Reg. čísl. hráča | G3: Priezvisko, meno | J3: Reg. čísl. hráča | N3: v ďalších kolách | S3: za 1.
S5: Vytlačiť pre družstvá na zostavy
N7: 1.t | O7: 2 V | Q7: 2014-03-23
N8: 2.t | O8: 2 Z | Q8: 2014-03-30
N9: 3.t | O9: 1 V | Q9: 2014-04-06
N10: 4.t | O10: 1 Z | Q10: 2014-04-13
A13: Družstvo č. 2. | C13: MKK Piešťany | G13: Družstvo č. 5. | I13: KK Zlaté Klasy | N13: Nasadenie v IV.turnaji v Starej Turej
A14: Priezvisko, meno | D14: Reg. čísl. hráča | G14: Priezvisko, meno | J14: Reg. čísl. hráča | N14: TJ Slavoj Veľký Šariš
N15: ŽP Šport Podbrezová
N16: MKK Stará Turá
N17: KK Tatran Sučany
N18: ŠK Modranka
N19: TKK Trenčín
N22: 1. turnajové kolo
A24: Družstvo č. 3. | C24: ŠK Modranka | N24: Zlaté Klasy | P24: Turnajové miesto
A25: Priezvisko, meno | D25: Reg. čísl. hráča
N27: T4 | O27: Turnaj
N29: Rozhodcovia
N31: Lengyel Ottó
N32: Vlahyová Eva
B35: Dráha č 1 | D35: Dráha č 2 | G35: Dráha č 3 | I35: Dráha č 4
A36: 10:00:00 | B36: 1 hráč z 5 druž. | D36: 1 hráč z 4 druž. | G36: 1 hráč z 3 druž. | I36: 1 hráč z 2 druž.
S37: 5 | T37: 4 | U37: 3 | V37: 2
A38: 11:05:00 | B38: 1 hráč z 1 druž. | D38: 2 hráč z 5 druž. | G38: 2 hráč z 4 druž. | I38: 2 hráč z 3 druž. | S38: 1 | T38: 5 | U38: 4 | V38: 3
S39: 2 | T39: 1 | U39: 5 | V39: 4
A40: 12:10:00 | B40: 2 hráč z 2 druž. | D40: 2 hráč z 1 druž. | G40: 3 hráč z 5 druž. | I40: 3 hráč z 4 druž. | S40: 3 | T40: 2 | U40: 1 | V40: 5
S41: 4 | T41: 3 | U41: 2 | V41: 1
A42: 13:15:00 | B42: 3 hráč z 3 druž. | D42: 3 hráč z 2 druž. | G42: 3 hráč z 1 druž. | I42: 4 hráč z 5 druž.
A44: 14:20:00 | B44: 4 hráč z 4 druž. | D44: 4 hráč z 3 druž. | G44: 4 hráč z 2 druž. | I44: 4 hráč z 1 druž.
A46: 15:30:00 | B46: Ukončenie a vyhlásenie výsledkov

Sheet Zap 1 Pc - TU VPISOVAŤ Mená
B2: ='Tlačivo na zostavy'!$A$2 -> Družstvo č. 1. | D2: ='Tlačivo na zostavy'!$C$2 -> TJ Rakovice | H2: ='Tlačivo na zostavy'!$G$2 -> Družstvo č. 4. | J2: ='Tlačivo na zostavy'!$I$2 -> MKK Slovan Galanta | P2: za 2.
B3: Priezvisko,meno | E3: Registr. číslo hráča | H3: Priezvisko,meno | K3: Registr. číslo hráča
B4: Viktoria Forrová | H4: Veronika Beskidová
B6: Timea Magalová/Dean Kukuč | H6: Laura Tanczosová | O6: Tu vpísať iba priezvisko a meno
B8: Dominik Masár | H8: Matej Kubalec | O8: a číslo reg. preukazu
B10: Timotej Masár | H10: Konrád Kosár
O11: Dať vytlačiť pre rozhodcu a hráčov.
B13: ='Tlačivo na zostavy'!$A$13 -> Družstvo č. 2. | D13: ='Tlačivo na zostavy'!$C$13 -> MKK Piešťany | H13: ='Tlačivo na zostavy'!$G$13 -> Družstvo č. 5. | J13: ='Tlačivo na zostavy'!I13 -> KK Zlaté Klasy
B14: Priezvisko,meno | E14: Registr. číslo hráča | H14: Priezvisko,meno | K14: Registr. číslo hráča
B15: Lucia Ondrisová | H15: Lucia Magyarics
B17: Hana Švorcová | H17: Viktor Magyarics
B19: Samuel Saxun | H19: Adam Tóth
B21: Stela Lučanská | H21: Michal Jurík
B24: ='Tlačivo na zostavy'!$A$24 -> Družstvo č. 3. | D24: ='Tlačivo na zostavy'!$C$24 -> ŠK Modranka
B25: Priezvisko,meno | E25: Registr. číslo hráča
B26: Marcel Sestak
B28: Michal Kubicek
B30: Richard Hupko
B32: Daniel Rakicky
C35: Dráha č. 1 | E35: Dráha č. 2 | H35: Dráha č. 3 | J35: Dráha č. 4
B36: 10:00:00 | C36: =J13 -> KK Zlaté Klasy | E36: =J2 -> MKK Slovan Galanta | H36: =D24 -> ŠK Modranka | J36: =D13 -> MKK Piešťany
C37: =H15 -> Lucia Magyarics | E37: =H4 -> Veronika Beskidová | H37: =B26 -> Marcel Sestak | J37: =B15 -> Lucia Ondrisová
B38: 11:05:00 | C38: =D2 -> TJ Rakovice | E38: =J13 -> KK Zlaté Klasy | H38: =J2 -> MKK Slovan Galanta | J38: =D24 -> ŠK Modranka
C39: =B4 -> Viktoria Forrová | E39: =H17 -> Viktor Magyarics | H39: =H6 -> Laura Tanczosová | J39: =B28 -> Michal Kubicek
B40: 12:10:00 | C40: =D13 -> MKK Piešťany | E40: =D2 -> TJ Rakovice | H40: =J13 -> KK Zlaté Klasy | J40: =J2 -> MKK Slovan Galanta
C41: =B17 -> Hana Švorcová | E41: =B6 -> Timea Magalová/Dean Kukuč | H41: =H19 -> Adam Tóth | J41: =H8 -> Matej Kubalec
B42: 13:15:00 | C42: =D24 -> ŠK Modranka | E42: =D13 -> MKK Piešťany | H42: =D2 -> TJ Rakovice | J42: =J13 -> KK Zlaté Klasy
C43: =B30 -> Richard Hupko | E43: =B19 -> Samuel Saxun | H43: =B8 -> Dominik Masár | J43: =H21 -> Michal Jurík
B44: 14:20:00 | C44: =J2 -> MKK Slovan Galanta | E44: =D24 -> ŠK Modranka | H44: =D13 -> MKK Piešťany | J44: =D2 -> TJ Rakovice
C45: =H10 -> Konrád Kosár | E45: =B32 -> Daniel Rakicky | H45: =B21 -> Stela Lučanská | J45: =B10 -> Timotej Masár
B46: 15:30:00 | C46: Ukončenie a vyhlásenie výsledkov

Sheet ZapPreRozhod
B3: Turnaj o Majstra Trnavského kraja družstiev 2026 | P3: za 3.
B6: ='Tlačivo na zostavy'!$N$22 -> 1. turnajové kolo | D6: Prvá štvorka hráčov 1 - 4 | K6: ='Tlačivo na zostavy'!$N$24 -> Zlaté Klasy | M6: =TODAY() -> 2026-03-22 | P6: vytlačiť
P7: zápisy
D8: Plné | E8: Chyby | F8: Cel_30 | G8: 120 Hz. | K8: Plné | L8: Chyby | M8: Cel_30 | N8: 120 Hz. | P8: pre rozhodcu
B9: ='Zap 1 Pc - TU VPISOVAŤ Mená'!$C$37 -> Lucia Magyarics | C9: 1 | D9: 87 | E9: 1 | F9: 129 | I9: ='Zap 1 Pc - TU VPISOVAŤ Mená'!$E$37 -> Veronika Beskidová | J9: 2 | K9: 96 | L9: 0 | M9: 136
C10: 2 | D10: 88 | E10: 3 | F10: 123 | J10: 1 | K10: 97 | L10: 1 | M10: 157
C11: 4 | D11: 85 | E11: 1 | F11: 129 | J11: 3 | K11: 86 | L11: 3 | M11: 138
B12: ='Zap 1 Pc - TU VPISOVAŤ Mená'!$C$36 -> KK Zlaté Klasy | C12: 3 | D12: 83 | E12: 3 | F12: 119 | I12: ='Zap 1 Pc - TU VPISOVAŤ Mená'!$E$36 -> MKK Slovan Galanta | J12: 4 | K12: 73 | L12: 2 | M12: 109
B13: Spolu : | D13: 343 | E13: 8 | F13: 500 | I13: Spolu : | K13: 352 | L13: 5 | M13: 543
D18: Plné | E18: Chyby | F18: Cel_30 | G18: 120 Hz. | K18: Plné | L18: Chyby | M18: Cel_30 | N18: 120 Hz.
B19: ='Zap 1 Pc - TU VPISOVAŤ Mená'!$H$37 -> Marcel Sestak | C19: 3 | D19: 76 | E19: 3 | F19: 120 | I19: ='Zap 1 Pc - TU VPISOVAŤ Mená'!$J$37 -> Lucia Ondrisová | J19: 4 | K19: 90 | L19: 3 | M19: 117
C20: 4 | D20: 68 | E20: 3 | F20: 97 | J20: 3 | K20: 100 | L20: 2 | M20: 151
C21: 6 | D21: 86 | E21: 3 | F21: 121 | J21: 5 | K21: 94 | L21: 0 | M21: 137
B22: ='Zap 1 Pc - TU VPISOVAŤ Mená'!$H$36 -> ŠK Modranka | C22: 5 | D22: 88 | E22: 3 | F22: 136 | I22: ='Zap 1 Pc - TU VPISOVAŤ Mená'!$J$36 -> MKK Piešťany | J22: 6 | K22: 79 | L22: 2 | M22: 111
B23: Spolu : | D23: 318 | E23: 12 | F23: 474 | I23: Spolu : | K23: 363 | L23: 7 | M23: 515
B29: =$B$3 -> Turnaj o Majstra Trnavského kraja družstiev 2026
B32: =$B$6 -> 1. turnajové kolo | D32: Druhá štvorka hráčov 5 - 8 | K32: =$K$6 -> Zlaté Klasy | M32: =TODAY() -> 2026-03-22
D34: Plné | E34: Chyby | F34: Cel_30 | G34: 120 Hz. | K34: Plné | L34: Chyby | M34: Cel_30 | N34: 120 Hz.
B35: ='Zap 1 Pc - TU VPISOVAŤ Mená'!$C$39 -> Viktoria Forrová | C35: 1 | D35: 89 | E35: 1 | F35: 142 | I35: ='Zap 1 Pc - TU VPISOVAŤ Mená'!$E$39 -> Viktor Magyarics | J35: 2 | K35: 82 | L35: 5 | M35: 108
C36: 2 | D36: 96 | E36: 2 | F36: 129 | J36: 1 | K36: 92 | L36: 3 | M36: 125
C37: 4 | D37: 79 | E37: 2 | F37: 122 | J37: 3 | K37: 93 | L37: 0 | M37: 147
B38: ='Zap 1 Pc - TU VPISOVAŤ Mená'!$C$38 -> TJ Rakovice | C38: 3 | D38: 86 | E38: 1 | F38: 130 | I38: ='Zap 1 Pc - TU VPISOVAŤ Mená'!$E$38 -> KK Zlaté Klasy | J38: 4 | K38: 90 | L38: 2 | M38: 125
B39: Spolu : | D39: 350 | E39: 6 | F39: 523 | I39: Spolu : | K39: 357 | L39: 10 | M39: 505
D44: Plné | E44: Chyby | F44: Cel_30 | G44: 120 Hz. | K44: Plné | L44: Chyby | M44: Cel_30 | N44: 120 Hz.
B45: ='Zap 1 Pc - TU VPISOVAŤ Mená'!$H$39 -> Laura Tanczosová | C45: 3 | D45: 81 | E45: 5 | F45: 107 | I45: ='Zap 1 Pc - TU VPISOVAŤ Mená'!$J$39 -> Michal Kubicek | J45: 4 | K45: 93 | L45: 1 | M45: 146
C46: 4 | D46: 92 | E46: 7 | F46: 117 | J46: 3 | K46: 93 | L46: 1 | M46: 134
C47: 6 | D47: 82 | E47: 1 | F47: 113 | J47: 5 | K47: 99 | L47: 2 | M47: 131
B48: ='Zap 1 Pc - TU VPISOVAŤ Mená'!$H$38 -> MKK Slovan Galanta | C48: 5 | D48: 96 | E48: 3 | F48: 127 | I48: ='Zap 1 Pc - TU VPISOVAŤ Mená'!$J$38 -> ŠK Modranka | J48: 6 | K48: 82 | L48: 3 | M48: 127
B49: Spolu : | D49: 351 | E49: 16 | F49: 464 | I49: Spolu : | K49: 367 | L49: 7 | M49: 538
B55: =$B$3 -> Turnaj o Majstra Trnavského kraja družstiev 2026
B58: =$B$6 -> 1. turnajové kolo | D58: Tretia štvorka hráčov 9 - 12 | K58: =$K$6 -> Zlaté Klasy | M58: =TODAY() -> 2026-03-22
D60: Plné | E60: Chyby | F60: Cel_30 | G60: 120 Hz. | K60: Plné | L60: Chyby | M60: Cel_30 | N60: 120 Hz.
B61: ='Zap 1 Pc - TU VPISOVAŤ Mená'!$C$41 -> Hana Švorcová | C61: 1 | D61: 90 | E61: 2 | F61: 125 | I61: ='Zap 1 Pc - TU VPISOVAŤ Mená'!$E$41 -> Timea Magalová/Dean Kukuč | J61: 2 | K61: 93 | L61: 3 | M61: 128
C62: 2 | D62: 97 | E62: 2 | F62: 138 | J62: 1 | K62: 90 | L62: 1 | M62: 143
C63: 4 | D63: 78 | E63: 3 | F63: 111 | J63: 3 | K63: 82 | L63: 8 | M63: 100
B64: ='Zap 1 Pc - TU VPISOVAŤ Mená'!$C$40 -> MKK Piešťany | C64: 3 | D64: 88 | E64: 3 | F64: 115 | I64: ='Zap 1 Pc - TU VPISOVAŤ Mená'!$E$40 -> TJ Rakovice | J64: 4 | K64: 65 | L64: 7 | M64: 90
B65: Spolu : | D65: 353 | E65: 10 | F65: 489 | I65: Spolu : | K65: 330 | L65: 19 | M65: 461
D70: Plné | E70: Chyby | F70: Cel_30 | G70: 120 Hz. | K70: Plné | L70: Chyby | M70: Cel_30 | N70: 120 Hz.
B71: ='Zap 1 Pc - TU VPISOVAŤ Mená'!$H$41 -> Adam Tóth | C71: 3 | D71: 73 | E71: 2 | F71: 117 | I71: ='Zap 1 Pc - TU VPISOVAŤ Mená'!$J$41 -> Matej Kubalec | J71: 4 | K71: 74 | L71: 3 | M71: 101
C72: 4 | D72: 79 | E72: 5 | F72: 115 | J72: 3 | K72: 84 | L72: 4 | M72: 135
C73: 6 | D73: 84 | E73: 3 | F73: 110 | J73: 5 | K73: 78 | L73: 1 | M73: 148
B74: ='Zap 1 Pc - TU VPISOVAŤ Mená'!$H$40 -> KK Zlaté Klasy | C74: 5 | D74: 83 | E74: 7 | F74: 109 | I74: ='Zap 1 Pc - TU VPISOVAŤ Mená'!$J$40 -> MKK Slovan Galanta | J74: 6 | K74: 89 | L74: 1 | M74: 140
B75: Spolu : | D75: 319 | E75: 17 | F75: 451 | I75: Spolu : | K75: 325 | L75: 9 | M75: 524
B81: =$B$3 -> Turnaj o Majstra Trnavského kraja družstiev 2026
B84: =$B$6 -> 1. turnajové kolo | D84: Štvrtá štvorka hráčov 13 - 16 | K84: =$K$6 -> Zlaté Klasy | M84: =TODAY() -> 2026-03-22
D86: Plné | E86: Chyby | F86: Cel_30 | G86: 120 Hz. | K86: Plné | L86: Chyby | M86: Cel_30 | N86: 120 Hz.
B87: ='Zap 1 Pc - TU VPISOVAŤ Mená'!$C$43 -> Richard Hupko | C87: 1 | D87: 97 | E87: 1 | F87: 165 | I87: ='Zap 1 Pc - TU VPISOVAŤ Mená'!$E$43 -> Samuel Saxun | J87: 2 | K87: 82 | L87: 5 | M87: 112
C88: 2 | D88: 96 | E88: 1 | F88: 130 | J88: 1 | K88: 88 | L88: 6 | M88: 114
C89: 4 | D89: 99 | E89: 1 | F89: 147 | J89: 3 | K89: 73 | L89: 9 | M89: 99
B90: ='Zap 1 Pc - TU VPISOVAŤ Mená'!$C$42 -> ŠK Modranka | C90: 3 | D90: 94 | E90: 0 | F90: 147 | I90: ='Zap 1 Pc - TU VPISOVAŤ Mená'!$E$42 -> MKK Piešťany | J90: 4 | K90: 91 | L90: 3 | M90: 134
B91: Spolu : | D91: =SUM(D87:D90) -> 386 | E91: =E90+E89+E88+E87 -> 3 | F91: 589 | I91: Spolu : | K91: =SUM(K87:K90) -> 334 | L91: 23 | M91: 459
D96: Plné | E96: Chyby | F96: Cel_30 | G96: 120 Hz. | K96: Plné | L96: Chyby | M96: Cel_30 | N96: 120 Hz.
B97: ='Zap 1 Pc - TU VPISOVAŤ Mená'!$H$43 -> Dominik Masár | C97: 3 | D97: 92 | E97: 1 | F97: 132 | I97: ='Zap 1 Pc - TU VPISOVAŤ Mená'!$J$43 -> Michal Jurík | J97: 4 | K97: 82 | L97: 3 | M97: 109
C98: 4 | D98: 81 | E98: 1 | F98: 139 | J98: 3 | K98: 81 | L98: 1 | M98: 124
C99: 2 | D99: 88 | E99: 3 | F99: 114 | J99: 1 | K99: 77 | L99: 3 | M99: 112
B100: ='Zap 1 Pc - TU VPISOVAŤ Mená'!$H$42 -> TJ Rakovice | C100: 1 | D100: 94 | E100: 0 | F100: 144 | I100: ='Zap 1 Pc - TU VPISOVAŤ Mená'!$J$42 -> KK Zlaté Klasy | J100: 2 | K100: 82 | M100: 116
B101: Spolu : | D101: =SUM(D97:D100) -> 355 | E101: 5 | F101: 529 | I101: Spolu : | K101: =SUM(K97:K100) -> 322 | L101: 7 | M101: 461
B107: =$B$3 -> Turnaj o Majstra Trnavského kraja družstiev 2026
B110: =$B$6 -> 1. turnajové kolo | D110: Piata štvorka hráčov 17 - 20 | K110: =$K$6 -> Zlaté Klasy | M110: =TODAY() -> 2026-03-22
D112: Plné | E112: Chyby | F112: Cel_30 | G112: 120 Hz. | K112: Plné | L112: Chyby | M112: Cel_30 | N112: 120 Hz.
B113: ='Zap 1 Pc - TU VPISOVAŤ Mená'!$C$45 -> Konrád Kosár | C113: 1 | D113: 81 | E113: 3 | F113: 117 | I113: ='Zap 1 Pc - TU VPISOVAŤ Mená'!$E$45 -> Daniel Rakicky | J113: 2 | K113: 76 | L113: 11 | M113: 83
C114: 2 | D114: 91 | E114: 0 | F114: 154 | J114: 1 | K114: 70 | L114: 7 | M114: 97
C115: 4 | D115: 87 | E115: 2 | F115: 139 | J115: 3 | K115: 82 | L115: 8 | M115: 102
B116: ='Zap 1 Pc - TU VPISOVAŤ Mená'!$C$44 -> MKK Slovan Galanta | C116: 3 | D116: 84 | E116: 5 | F116: 118 | I116: ='Zap 1 Pc - TU VPISOVAŤ Mená'!$E$44 -> ŠK Modranka | J116: 4 | K116: 81 | L116: 5 | M116: 118
B117: Spolu : | D117: =SUM(D113:D116) -> 343 | E117: 10 | F117: 528 | I117: Spolu : | K117: =SUM(K113:K116) -> 309 | L117: 31 | M117: 400
D122: Plné | E122: Chyby | F122: Cel_30 | G122: 120 Hz. | K122: Plné | L122: Chyby | M122: Cel_30 | N122: 120 Hz.
B123: ='Zap 1 Pc - TU VPISOVAŤ Mená'!$H$45 -> Stela Lučanská | C123: 3 | D123: 89 | E123: 3 | F123: 124 | I123: ='Zap 1 Pc - TU VPISOVAŤ Mená'!$J$45 -> Timotej Masár | J123: 4 | K123: 99 | L123: 0 | M123: 142
C124: 4 | D124: 79 | E124: 4 | F124: 105 | J124: 3 | K124: 87 | L124: 1 | M124: 141
C125: 2 | D125: 101 | E125: 0 | F125: 155 | J125: 1 | K125: 84 | M125: 143
B126: ='Zap 1 Pc - TU VPISOVAŤ Mená'!$H$44 -> MKK Piešťany | C126: 1 | D126: 95 | E126: 1 | F126: 149 | I126: ='Zap 1 Pc - TU VPISOVAŤ Mená'!$J$44 -> TJ Rakovice | J126: 2 | K126: 99 | L126: 1 | M126: 143
B127: Spolu : | D127: =SUM(D123:D126) -> 364 | E127: 8 | F127: 533 | I127: Spolu : | K127: =SUM(K123:K126) -> 369 | L127: 2 | M127: 569

Sheet Zápis tur_ Pc Výkony
C1: Zápis | F1: 1. | H1: turnaja | K1: Kolkáreň : | L1: Zlaté Klasy | P1: Dátum: | Q1: 2026-03-22
K2: Rozhodcovia : | L2: ='Tlačivo na zostavy'!$N$31 -> Lengyel Ottó | P2: ='Tlačivo na zostavy'!$N$32 -> Vlahyová Eva
B4: ='Tlačivo na zostavy'!$A$2 -> Družstvo č. 1. | D4: ='Tlačivo na zostavy'!$C$2 -> TJ Rakovice | K4: ='Tlačivo na zostavy'!$G$2 -> Družstvo č. 4. | L4: ='Tlačivo na zostavy'!$I$2 -> MKK Slovan Galanta
B5: Priezvisko, meno a registračné číslo hráča | E5: Plné | F5: Dorážka | G5: Chyby | H5: Spolu | I5: Body | K5: Priezvisko, meno a registračné číslo hráča | N5: Plné | O5: Dorážka | P5: Chyby | Q5: Spolu | R5: Body
B6: ='Zap 1 Pc - TU VPISOVAŤ Mená'!$B$4 -> Viktoria Forrová | C6: ='Zap 1 Pc - TU VPISOVAŤ Mená'!$E$4 -> 0 | E6: 350 | F6: =H6-E6 -> 173 | G6: 6 | H6: 523 | K6: Veronika Beskidová | L6: ='Zap 1 Pc - TU VPISOVAŤ Mená'!$K$4 -> 0 | N6: 352 | O6: =Q6-N6 -> 191 | P6: 5 | Q6: 543
I7: =$Y$27 -> 6 | R7: =$Y$30 -> 4
B8: ='Zap 1 Pc - TU VPISOVAŤ Mená'!B6 -> Timea Magalová/Dean Kukuč | C8: ='Zap 1 Pc - TU VPISOVAŤ Mená'!E6 -> 0 | E8: 330 | F8: =H8-E8 -> 131 | G8: 19 | H8: 461 | K8: Laura Tánczosová | L8: ='Zap 1 Pc - TU VPISOVAŤ Mená'!$K$6 -> 0 | N8: 351 | O8: =Q8-N8 -> 113 | P8: 16 | Q8: 464
B10: ='Zap 1 Pc - TU VPISOVAŤ Mená'!B8 -> Dominik Masár | C10: ='Zap 1 Pc - TU VPISOVAŤ Mená'!E8 -> 0 | E10: 355 | F10: =H10-E10 -> 174 | G10: 5 | H10: 529 | K10: Matej Kubalec | L10: ='Zap 1 Pc - TU VPISOVAŤ Mená'!$K$8 -> 0 | N10: 325 | O10: =Q10-N10 -> 199 | P10: 9 | Q10: 524
B12: ='Zap 1 Pc - TU VPISOVAŤ Mená'!B10 -> Timotej Masár | C12: ='Zap 1 Pc - TU VPISOVAŤ Mená'!E10 -> 0 | E12: 369 | F12: =H12-E12 -> 200 | G12: 2 | H12: 569 | I12: Poradie | K12: Kosár Konrád | L12: ='Zap 1 Pc - TU VPISOVAŤ Mená'!$K$10 -> 0 | N12: 343 | O12: =Q12-N12 -> 185 | P12: 10 | Q12: 528 | R12: Poradie
E14: Spolu : | H14: =H6+H8+H10+H12 -> 2082 | I14: =$X$27 -> 1 | N14: Spolu : | Q14: =Q6+Q8+Q10+Q12 -> 2059 | R14: =$X$30 -> 2 | Z14: za 4.
B16: ='Tlačivo na zostavy'!$A$13 -> Družstvo č. 2. | D16: ='Tlačivo na zostavy'!$C$13 -> MKK Piešťany | K16: ='Tlačivo na zostavy'!$G$13 -> Družstvo č. 5. | M16: ='Tlačivo na zostavy'!$I$13 -> KK Zlaté Klasy
B17: Priezvisko, meno a registračné číslo hráča | E17: Plné | F17: Dorážka | G17: Chyby | H17: Spolu | I17: Body | K17: Priezvisko, meno a registračné číslo hráča | N17: Plné | O17: Dorážka | P17: Chyby | Q17: Spolu | R17: Body | U17: Tu vpísať iba výkony. | Z17: Tu vpísať iba výkony.
B18: ='Zap 1 Pc - TU VPISOVAŤ Mená'!B15 -> Lucia Ondrisová | C18: ='Zap 1 Pc - TU VPISOVAŤ Mená'!$E$15 -> 0 | E18: 363 | F18: =H18-E18 -> 152 | G18: 7 | H18: 515 | K18: ='Zap 1 Pc - TU VPISOVAŤ Mená'!H15 -> Lucia Magyarics | L18: ='Zap 1 Pc - TU VPISOVAŤ Mená'!$K$15 -> 0 | N18: 343 | O18: =Q18-N18 -> 157 | P18: 8 | Q18: 500
I19: =$Y$28 -> 2 | R19: =$Y$31 -> 1
B20: ='Zap 1 Pc - TU VPISOVAŤ Mená'!B17 -> Hana Švorcová | C20: ='Zap 1 Pc - TU VPISOVAŤ Mená'!$E$17 -> 0 | E20: 353 | F20: =H20-E20 -> 136 | G20: 10 | H20: 489 | K20: ='Zap 1 Pc - TU VPISOVAŤ Mená'!H17 -> Viktor Magyarics | L20: ='Zap 1 Pc - TU VPISOVAŤ Mená'!$K$17 -> 0 | N20: 357 | O20: =Q20-N20 -> 148 | P20: 10 | Q20: 505
B22: ='Zap 1 Pc - TU VPISOVAŤ Mená'!B19 -> Samuel Saxun | C22: ='Zap 1 Pc - TU VPISOVAŤ Mená'!$E$19 -> 0 | E22: 334 | F22: =H22-E22 -> 125 | G22: 23 | H22: 459 | K22: ='Zap 1 Pc - TU VPISOVAŤ Mená'!H19 -> Adam Tóth | L22: ='Zap 1 Pc - TU VPISOVAŤ Mená'!$K$19 -> 0 | N22: 319 | O22: =Q22-N22 -> 132 | P22: 17 | Q22: 451
B24: ='Zap 1 Pc - TU VPISOVAŤ Mená'!B21 -> Stela Lučanská | C24: ='Zap 1 Pc - TU VPISOVAŤ Mená'!$E$21 -> 0 | E24: 364 | F24: =H24-E24 -> 169 | G24: 8 | H24: 533 | I24: Poradie | K24: ='Zap 1 Pc - TU VPISOVAŤ Mená'!H21 -> Michal Jurík | L24: ='Zap 1 Pc - TU VPISOVAŤ Mená'!$K$21 -> 0 | N24: 322 | O24: =Q24-N24 -> 139 | P24: 7 | Q24: 461 | R24: Poradie
E26: Spolu : | H26: =H18+H20+H22+H24 -> 1996 | I26: =$X$28 -> 4 | N26: Spolu : | Q26: =Q18+Q20+Q22+Q24 -> 1917 | R26: =$X$31 -> 5 | U26: Družstvo | W26: Výkon | X26: Poradie | Y26: Body
U27: =$D$4 -> TJ Rakovice | W27: =$H$14 -> 2082 | X27: =IF(W27=LARGE(W27:W32,1),"1",IF(W27=LARGE(W27:W32,2),"2",IF(W27=LARGE(W27:W32,3),"3",IF(W27=LARGE(W27:W32,4),"4",IF(W27=LARGE(W27:W32,5),"5",IF(W27=LARGE(W27:W32,6),"6")))))) -> 1 | Y27: =IF(W27=LARGE(W27:W32,1),"6",IF(W27=LARGE(W27:W32,2),"4",IF(W27=LARGE(W27:W32,3),"3",IF(W27=LARGE(W27:W32,4),"2",IF(W27=LARGE(W27:W32,5),"1",IF(W27=LARGE(W27:W32,6),"0")))))) -> 6
B28: ='Tlačivo na zostavy'!$A$24 -> Družstvo č. 3. | D28: ='Tlačivo na zostavy'!$C$24 -> ŠK Modranka | U28: =$D$16 -> MKK Piešťany | W28: =$H$26 -> 1996 | X28: =IF(W28=LARGE(W27:W32,1),"1",IF(W28=LARGE(W27:W32,2),"2",IF(W28=LARGE(W27:W32,3),"3",IF(W28=LARGE(W27:W32,4),"4",IF(W28=LARGE(W27:W32,5),"5",IF(W28=LARGE(W27:W32,6),"6")))))) -> 4 | Y28: =IF(W28=LARGE(W27:W32,1),"6",IF(W28=LARGE(W27:W32,2),"4",IF(W28=LARGE(W27:W32,3),"3",IF(W28=LARGE(W27:W32,4),"2",IF(W28=LARGE(W27:W32,5),"1",IF(W28=LARGE(W27:W32,6),"0")))))) -> 2
B29: Priezvisko, meno a registračné číslo hráča | E29: Plné | F29: Dorážka | G29: Chyby | H29: Spolu | I29: Body | U29: =$D$28 -> ŠK Modranka | W29: =$H$38 -> 2001 | X29: =IF(W29=LARGE(W27:W32,1),"1",IF(W29=LARGE(W27:W32,2),"2",IF(W29=LARGE(W27:W32,3),"3",IF(W29=LARGE(W27:W32,4),"4",IF(W29=LARGE(W27:W32,5),"5",IF(W29=LARGE(W27:W32,6),"6")))))) -> 3 | Y29: =IF(W29=LARGE(W27:W32,1),"6",IF(W29=LARGE(W27:W32,2),"4",IF(W29=LARGE(W27:W32,3),"3",IF(W29=LARGE(W27:W32,4),"2",IF(W29=LARGE(W27:W32,5),"1",IF(W29=LARGE(W27:W32,6),"0")))))) -> 3
B30: ='Zap 1 Pc - TU VPISOVAŤ Mená'!B26 -> Marcel Sestak | C30: ='Zap 1 Pc - TU VPISOVAŤ Mená'!$E$26 -> 0 | E30: 318 | F30: =H30-E30 -> 156 | G30: 12 | H30: 474 | U30: =$L$4 -> MKK Slovan Galanta | W30: =$Q$14 -> 2059 | X30: =IF(W30=LARGE(W27:W32,1),"1",IF(W30=LARGE(W27:W32,2),"2",IF(W30=LARGE(W27:W32,3),"3",IF(W30=LARGE(W27:W32,4),"4",IF(W30=LARGE(W27:W32,5),"5",IF(W30=LARGE(W27:W32,6),"6")))))) -> 2 | Y30: =IF(W30=LARGE(W27:W32,1),"6",IF(W30=LARGE(W27:W32,2),"4",IF(W30=LARGE(W27:W32,3),"3",IF(W30=LARGE(W27:W32,4),"2",IF(W30=LARGE(W27:W32,5),"1",IF(W30=LARGE(W27:W32,6),"0")))))) -> 4
I31: =$Y$29 -> 3 | U31: =$M$16 -> KK Zlaté Klasy | W31: =$Q$26 -> 1917 | X31: =IF(W31=LARGE(W27:W32,1),"1",IF(W31=LARGE(W27:W32,2),"2",IF(W31=LARGE(W27:W32,3),"3",IF(W31=LARGE(W27:W32,4),"4",IF(W31=LARGE(W27:W32,5),"5",IF(W31=LARGE(W27:W32,6),"6")))))) -> 5 | Y31: =IF(W31=LARGE(W27:W32,1),"6",IF(W31=LARGE(W27:W32,2),"4",IF(W31=LARGE(W27:W32,3),"3",IF(W31=LARGE(W27:W32,4),"2",IF(W31=LARGE(W27:W32,5),"1",IF(W31=LARGE(W27:W32,6),"0")))))) -> 1
B32: ='Zap 1 Pc - TU VPISOVAŤ Mená'!B28 -> Michal Kubicek | C32: ='Zap 1 Pc - TU VPISOVAŤ Mená'!$E$28 -> 0 | E32: 367 | F32: =H32-E32 -> 171 | G32: 7 | H32: 538 | U32: =$L$28 -> 0 | W32: =$Q$38 -> 0 | X32: =IF(W32=LARGE(W27:W32,1),"1",IF(W32=LARGE(W27:W32,2),"2",IF(W32=LARGE(W27:W32,3),"3",IF(W32=LARGE(W27:W32,4),"4",IF(W32=LARGE(W27:W32,5),"5",IF(W32=LARGE(W27:W32,6),"6")))))) -> 6 | Y32: =IF(W32=LARGE(W27:W32,1),"6",IF(W32=LARGE(W27:W32,2),"4",IF(W32=LARGE(W27:W32,3),"3",IF(W32=LARGE(W27:W32,4),"2",IF(W32=LARGE(W27:W32,5),"1",IF(W32=LARGE(W27:W32,6),"0")))))) -> 0
B34: ='Zap 1 Pc - TU VPISOVAŤ Mená'!B30 -> Richard Hupko | C34: ='Zap 1 Pc - TU VPISOVAŤ Mená'!$E$30 -> 0 | E34: 386 | F34: =H34-E34 -> 203 | G34: 3 | H34: 589 | U34: =$D$4 -> TJ Rakovice | V34: =$L$4 -> MKK Slovan Galanta
U35: =H6 -> 523 | V35: =Q6 -> 543
B36: ='Zap 1 Pc - TU VPISOVAŤ Mená'!B32 -> Daniel Rakicky | C36: ='Zap 1 Pc - TU VPISOVAŤ Mená'!$E$32 -> 0 | E36: 309 | F36: =H36-E36 -> 91 | G36: 31 | H36: 400 | I36: Poradie | U36: =H8 -> 461 | V36: =Q8 -> 464
U37: =H10 -> 529 | V37: =Q10 -> 524
E38: Spolu : | H38: =H30+H32+H34+H36 -> 2001 | I38: =$X$29 -> 3 | U38: =H12 -> 569 | V38: =Q12 -> 528
U39: =LARGE(U35:U38,1)+LARGE(U35:U38,2)+LARGE(U35:U38,3) -> 1621 | V39: 1595
K42: Podpis rozhodcu :
U45: =$D$16 -> MKK Piešťany | V45: =$M$16 -> KK Zlaté Klasy
U46: =H18 -> 515 | V46: =Q18 -> 500
U47: =H20 -> 489 | V47: =Q20 -> 505
U48: =H22 -> 459 | V48: =Q22 -> 451
U49: =H24 -> 533 | V49: =Q24 -> 461
U50: =LARGE(U46:U49,1)+LARGE(U46:U49,2)+LARGE(U46:U49,3) -> 1537 | V50: 1466
U53: =$D$28 -> ŠK Modranka | V53: =$L$28 -> 0
U54: =H30 -> 474 | V54: =Q30 -> 0
U55: =H32 -> 538 | V55: =Q32 -> 0
U56: =H34 -> 589 | V56: =Q34 -> 0
U57: =H36 -> 400 | V57: =Q36 -> 0
U58: =LARGE(U54:U57,1)+LARGE(U54:U57,2)+LARGE(U54:U57,3) -> 1601 | V58: 0

Sheet Výsledky
B2: Výsledky 1. turnajového kola Dorasteneckej ligy | N2: za 5.
C3: o Majstra Trnavského kraja družstiev 2026
C4: Zlaté Klasy 22.3.2026
C6: ='Tlačivo na zostavy'!$C$2 -> TJ Rakovice | D6: Číslo pr. | E6: Plné | F6: Doráž. | G6: Ch. | H6: Spolu | N6: Tu len vypísať rozhod. zápis
C7: =CLEAN('Zápis tur_ Pc Výkony'!B6) -> Viktoria Forrová | D7: ='Zápis tur_ Pc Výkony'!$C$6 -> 0 | E7: ='Zápis tur_ Pc Výkony'!E6 -> 350 | F7: ='Zápis tur_ Pc Výkony'!F6 -> 173 | G7: ='Zápis tur_ Pc Výkony'!$G$6 -> 6 | H7: =E7+F7 -> 523
C8: =CLEAN('Zápis tur_ Pc Výkony'!B8) -> Timea Magalová/Dean Kukuč | D8: ='Zápis tur_ Pc Výkony'!$C$8 -> 0 | E8: ='Zápis tur_ Pc Výkony'!E8 -> 330 | F8: ='Zápis tur_ Pc Výkony'!F8 -> 131 | G8: ='Zápis tur_ Pc Výkony'!$G$8 -> 19 | H8: 461 | I8: Poradie | K8: Body | N8: v spodnej časti tabuľky.
C9: =CLEAN('Zápis tur_ Pc Výkony'!B10) -> Dominik Masár | D9: ='Zápis tur_ Pc Výkony'!$C$10 -> 0 | E9: ='Zápis tur_ Pc Výkony'!E10 -> 355 | F9: ='Zápis tur_ Pc Výkony'!F10 -> 174 | G9: ='Zápis tur_ Pc Výkony'!$G$10 -> 5 | H9: 529
C10: =CLEAN('Zápis tur_ Pc Výkony'!B12) -> Timotej Masár | D10: ='Zápis tur_ Pc Výkony'!$C$12 -> 0 | E10: ='Zápis tur_ Pc Výkony'!E12 -> 369 | F10: ='Zápis tur_ Pc Výkony'!F12 -> 200 | G10: ='Zápis tur_ Pc Výkony'!$G$12 -> 2 | H10: 569 | I10: ='Zápis tur_ Pc Výkony'!$I$14 -> 1 | K10: ='Zápis tur_ Pc Výkony'!$I$7 -> 6
H11: =SUM('Zápis tur_ Pc Výkony'!H14) -> 2082
C13: ='Tlačivo na zostavy'!$C$13 -> MKK Piešťany | D13: Číslo pr. | E13: Plné | F13: Doráž. | G13: Ch. | H13: Spolu
C14: =CLEAN('Zápis tur_ Pc Výkony'!B18) -> Lucia Ondrisová | D14: ='Zápis tur_ Pc Výkony'!$C$18 -> 0 | E14: ='Zápis tur_ Pc Výkony'!E18 -> 363 | F14: ='Zápis tur_ Pc Výkony'!F18 -> 152 | G14: ='Zápis tur_ Pc Výkony'!$G$18 -> 7 | H14: =E14+F14 -> 515
C15: =CLEAN('Zápis tur_ Pc Výkony'!B20) -> Hana Švorcová | D15: ='Zápis tur_ Pc Výkony'!$C$20 -> 0 | E15: ='Zápis tur_ Pc Výkony'!E20 -> 353 | F15: ='Zápis tur_ Pc Výkony'!F20 -> 136 | G15: ='Zápis tur_ Pc Výkony'!$G$20 -> 10 | H15: 489 | I15: Poradie | K15: Body
C16: =CLEAN('Zápis tur_ Pc Výkony'!B22) -> Samuel Saxun | D16: ='Zápis tur_ Pc Výkony'!$C$22 -> 0 | E16: ='Zápis tur_ Pc Výkony'!E22 -> 334 | F16: ='Zápis tur_ Pc Výkony'!F22 -> 125 | G16: ='Zápis tur_ Pc Výkony'!$G$22 -> 23 | H16: 459
C17: =CLEAN('Zápis tur_ Pc Výkony'!B24) -> Stela Lučanská | D17: ='Zápis tur_ Pc Výkony'!$C$24 -> 0 | E17: ='Zápis tur_ Pc Výkony'!E24 -> 364 | F17: ='Zápis tur_ Pc Výkony'!F24 -> 169 | G17: ='Zápis tur_ Pc Výkony'!$G$24 -> 8 | H17: 533 | I17: ='Zápis tur_ Pc Výkony'!$I$26 -> 4 | K17: ='Zápis tur_ Pc Výkony'!$I$19 -> 2
H18: =SUM('Zápis tur_ Pc Výkony'!H26) -> 1996
C20: ='Tlačivo na zostavy'!$C$24 -> ŠK Modranka | D20: Číslo pr. | E20: Plné | F20: Doráž. | G20: Ch. | H20: Spolu
C21: =CLEAN('Zápis tur_ Pc Výkony'!B30) -> Marcel Sestak | D21: ='Zápis tur_ Pc Výkony'!$C$30 -> 0 | E21: ='Zápis tur_ Pc Výkony'!E30 -> 318 | F21: ='Zápis tur_ Pc Výkony'!F30 -> 156 | G21: ='Zápis tur_ Pc Výkony'!$G$30 -> 12 | H21: =E21+F21 -> 474
C22: =CLEAN('Zápis tur_ Pc Výkony'!B32) -> Michal Kubicek | D22: ='Zápis tur_ Pc Výkony'!$C$32 -> 0 | E22: ='Zápis tur_ Pc Výkony'!E32 -> 367 | F22: ='Zápis tur_ Pc Výkony'!F32 -> 171 | G22: ='Zápis tur_ Pc Výkony'!$G$32 -> 7 | H22: 538 | I22: Poradie | K22: Body
C23: =CLEAN('Zápis tur_ Pc Výkony'!B34) -> Richard Hupko | D23: ='Zápis tur_ Pc Výkony'!$C$34 -> 0 | E23: ='Zápis tur_ Pc Výkony'!E34 -> 386 | F23: ='Zápis tur_ Pc Výkony'!F34 -> 203 | G23: ='Zápis tur_ Pc Výkony'!$G$34 -> 3 | H23: 589
C24: =CLEAN('Zápis tur_ Pc Výkony'!B36) -> Daniel Rakicky | D24: ='Zápis tur_ Pc Výkony'!$C$36 -> 0 | E24: ='Zápis tur_ Pc Výkony'!E36 -> 309 | F24: ='Zápis tur_ Pc Výkony'!F36 -> 91 | G24: ='Zápis tur_ Pc Výkony'!$G$36 -> 31 | H24: 400 | I24: ='Zápis tur_ Pc Výkony'!$I$38 -> 3 | K24: ='Zápis tur_ Pc Výkony'!$I$31 -> 3
H25: =SUM('Zápis tur_ Pc Výkony'!H38) -> 2001
C27: ='Tlačivo na zostavy'!$I$2 -> MKK Slovan Galanta | D27: Číslo pr. | E27: Plné | F27: Doráž. | G27: Ch. | H27: Spolu
C28: =CLEAN('Zápis tur_ Pc Výkony'!K6) -> Veronika Beskidová | D28: ='Zápis tur_ Pc Výkony'!$L$6 -> 0 | E28: ='Zápis tur_ Pc Výkony'!N6 -> 352 | F28: ='Zápis tur_ Pc Výkony'!O6 -> 191 | G28: ='Zápis tur_ Pc Výkony'!$P$6 -> 5 | H28: =E28+F28 -> 543
C29: =CLEAN('Zápis tur_ Pc Výkony'!K8) -> Laura Tánczosová | D29: ='Zápis tur_ Pc Výkony'!$L$8 -> 0 | E29: ='Zápis tur_ Pc Výkony'!N8 -> 351 | F29: ='Zápis tur_ Pc Výkony'!O8 -> 113 | G29: ='Zápis tur_ Pc Výkony'!$P$8 -> 16 | H29: 464 | I29: Poradie | K29: Body
C30: =CLEAN('Zápis tur_ Pc Výkony'!K10) -> Matej Kubalec | D30: ='Zápis tur_ Pc Výkony'!$L$10 -> 0 | E30: ='Zápis tur_ Pc Výkony'!N10 -> 325 | F30: ='Zápis tur_ Pc Výkony'!O10 -> 199 | G30: ='Zápis tur_ Pc Výkony'!$P$10 -> 9 | H30: 524
C31: =CLEAN('Zápis tur_ Pc Výkony'!K12) -> Kosár Konrád | D31: ='Zápis tur_ Pc Výkony'!$L$12 -> 0 | E31: ='Zápis tur_ Pc Výkony'!N12 -> 343 | F31: ='Zápis tur_ Pc Výkony'!O12 -> 185 | G31: ='Zápis tur_ Pc Výkony'!$P$12 -> 10 | H31: 528 | I31: ='Zápis tur_ Pc Výkony'!$R$14 -> 2 | K31: ='Zápis tur_ Pc Výkony'!$R$7 -> 4
H32: =SUM('Zápis tur_ Pc Výkony'!Q14) -> 2059
C34: ='Tlačivo na zostavy'!$I$13 -> KK Zlaté Klasy | D34: Číslo pr. | E34: Plné | F34: Doráž. | G34: Ch. | H34: Spolu
C35: =CLEAN('Zápis tur_ Pc Výkony'!K18) -> Lucia Magyarics | D35: ='Zápis tur_ Pc Výkony'!$L$18 -> 0 | E35: ='Zápis tur_ Pc Výkony'!N18 -> 343 | F35: ='Zápis tur_ Pc Výkony'!O18 -> 157 | G35: ='Zápis tur_ Pc Výkony'!$P$18 -> 8 | H35: =E35+F35 -> 500
C36: =CLEAN('Zápis tur_ Pc Výkony'!K20) -> Viktor Magyarics | D36: ='Zápis tur_ Pc Výkony'!$L$20 -> 0 | E36: ='Zápis tur_ Pc Výkony'!N20 -> 357 | F36: ='Zápis tur_ Pc Výkony'!O20 -> 148 | G36: ='Zápis tur_ Pc Výkony'!$P$20 -> 10 | H36: 505 | I36: Poradie | K36: Body
C37: =CLEAN('Zápis tur_ Pc Výkony'!K22) -> Adam Tóth | D37: ='Zápis tur_ Pc Výkony'!$L$22 -> 0 | E37: ='Zápis tur_ Pc Výkony'!N22 -> 319 | F37: ='Zápis tur_ Pc Výkony'!O22 -> 132 | G37: ='Zápis tur_ Pc Výkony'!$P$22 -> 17 | H37: 451
C38: =CLEAN('Zápis tur_ Pc Výkony'!K24) -> Michal Jurík | D38: ='Zápis tur_ Pc Výkony'!$L$24 -> 0 | E38: ='Zápis tur_ Pc Výkony'!N24 -> 322 | F38: ='Zápis tur_ Pc Výkony'!O24 -> 139 | G38: ='Zápis tur_ Pc Výkony'!$P$24 -> 7 | H38: 461 | I38: ='Zápis tur_ Pc Výkony'!$R$26 -> 5 | K38: ='Zápis tur_ Pc Výkony'!$R$19 -> 1
H39: =SUM('Zápis tur_ Pc Výkony'!Q26) -> 1917
C44: Rozhodcovia : | D44: ='Tlačivo na zostavy'!$N$31 -> Lengyel Ottó
D45: ='Tlačivo na zostavy'!$N$32 -> Vlahyová Eva
C48: Čas začiatku stretnutia : | D48: 10:00 | G48: Teplota na kolkárni : | K48: 20°C
C50: Čas ukončenia stretnutia : | D50: 15:30 | H50: Počet divákov : | K50: 40
C52: Pripomienky k technickému stavu kolkárne:
C61: Striedanie hráčov (zranenia):
C71: Napomínania hráčov za nešportové správanie alebo vylúčenie zo štartu:
C80: Rôzne:
C90: Dňa: | I90: =TODAY() -> 2026-03-22
D91: Podpisy ved. družstiev a rozhodcov :
C93: ='Tlačivo na zostavy'!$C$2 -> TJ Rakovice
C95: ='Tlačivo na zostavy'!$C$13 -> MKK Piešťany
C97: ='Tlačivo na zostavy'!$C$24 -> ŠK Modranka
C99: ='Tlačivo na zostavy'!$I$2 -> MKK Slovan Galanta
C101: ='Tlačivo na zostavy'!$I$13 -> KK Zlaté Klasy
C103: ='Tlačivo na zostavy'!$I$24 -> 0
C105: Rozhodcovia

Sheet Tabuľka
B2: Poradie v 1. turnaji o dor. majstra TT kraja
B3: na kolkárni v Zlatých Klasoch - 22.3.2026
D4: Výkon | E4: Body
B5: 1. | C5: =Výsledky!$C$6 -> TJ Rakovice | D5: =Výsledky!$H$11 -> 2082 | E5: =Výsledky!$K$10 -> 6 | H5: za 6.
B6: 2. | C6: =Výsledky!$C$27 -> MKK Slovan Galanta | D6: =Výsledky!$H$32 -> 2059 | E6: =Výsledky!$K$31 -> 4
B7: 3. | C7: =Výsledky!$C$20 -> ŠK Modranka | D7: =Výsledky!$H$25 -> 2001 | E7: =Výsledky!$K$24 -> 3
B8: 4. | C8: =Výsledky!$C$13 -> MKK Piešťany | D8: =Výsledky!$H$18 -> 1996 | E8: =Výsledky!$K$17 -> 2
B9: 5. | C9: =Výsledky!$C$34 -> KK Zlaté Klasy | D9: =Výsledky!$H$39 -> 1917 | E9: =Výsledky!$K$38 -> 1

Sheet Jednot
B2: Poradie jednotlivcov v IV. turnajovom kole o majstra SR dorastu
B3: družstiev na kolkárni v Starej Turej - Piešťany 13.4.2014. | N3: Finálová tabuľka MTTK družstiev dorastu po I. turnaji 2026.
P4: Zlaté Klasy | S4: Piešťany | V4: Galanta | Y4: Modranka | AB4: Rakovice
C5: Hráč | D5: Čís.pr. | E5: družstvo | F5: Plné | G5: Dor. | H5: Ch. | I5: Spolu
B6: 1. | C6: =Výsledky!C23 -> Richard Hupko | D6: =Výsledky!D23 -> 0 | E6: =Výsledky!$C$20 -> ŠK Modranka | F6: =Výsledky!E23 -> 386 | G6: =Výsledky!F23 -> 203 | H6: =Výsledky!G23 -> 3 | I6: =Výsledky!H23 -> 589 | O6: Poradie | P6: T1 | S6: T2 | V6: T3 | Y6: T4 | AB6: T5 | AE6: Priemer | AF6: Body
B7: 2. | C7: =Výsledky!C10 -> Timotej Masár | D7: =Výsledky!D10 -> 0 | E7: =Výsledky!$C$6 -> TJ Rakovice | F7: =Výsledky!E10 -> 369 | G7: =Výsledky!F10 -> 200 | H7: =Výsledky!G10 -> 2 | I7: =Výsledky!H10 -> 569 | P7: Výkon | Q7: Por. | R7: Body | S7: Výkon | T7: Por. | U7: Body | V7: Výkon | W7: Por. | X7: Body | Y7: Výkon | Z7: Por. | AA7: Body | AB7: Výkon | AC7: Por. | AD7: Body | AE7: celkom | AF7: celkom
B8: 3. | C8: =Výsledky!C28 -> Veronika Beskidová | D8: =Výsledky!D28 -> 0 | E8: =Výsledky!$C$27 -> MKK Slovan Galanta | F8: =Výsledky!E28 -> 352 | G8: =Výsledky!F28 -> 191 | H8: =Výsledky!G28 -> 5 | I8: =Výsledky!H28 -> 543 | N8: 1. | O8: TJ Rakovice | P8: 2082 | Q8: 1 | R8: 6 | AE8: =IF(ISERROR(AVERAGE(P8,S8,V8,Y8,AB8)),"",AVERAGE(P8,S8,V8,Y8,AB8)) -> 2082 | AF8: =AD8+AA8+X8+U8+R8 -> 6
B9: 4. | C9: =Výsledky!C22 -> Michal Kubicek | D9: =Výsledky!D22 -> 0 | E9: =Výsledky!$C$20 -> ŠK Modranka | F9: =Výsledky!E22 -> 367 | G9: =Výsledky!F22 -> 171 | H9: =Výsledky!G22 -> 7 | I9: =Výsledky!H22 -> 538 | N9: 2. | O9: MKK Piešťany | P9: 1996 | Q9: 4 | R9: 2 | AE9: 1996 | AF9: 2
B10: 5. | C10: =Výsledky!C17 -> Stela Lučanská | D10: =Výsledky!D17 -> 0 | E10: =Výsledky!$C$13 -> MKK Piešťany | F10: =Výsledky!E17 -> 364 | G10: =Výsledky!F17 -> 169 | H10: =Výsledky!G17 -> 8 | I10: =Výsledky!H17 -> 533 | N10: 3. | O10: ŠK Modranka | P10: 2001 | Q10: 3 | R10: 3 | AE10: 2001 | AF10: 3
B11: 6. | C11: =Výsledky!C9 -> Dominik Masár | D11: =Výsledky!D9 -> 0 | E11: =Výsledky!$C$6 -> TJ Rakovice | F11: =Výsledky!E9 -> 355 | G11: =Výsledky!F9 -> 174 | H11: =Výsledky!G9 -> 5 | I11: =Výsledky!H9 -> 529 | N11: 4. | O11: MKK Slovan Galanta | P11: 2059 | Q11: 2 | R11: 4 | AE11: 2059 | AF11: 4
B12: 7. | C12: =Výsledky!C31 -> Kosár Konrád | D12: =Výsledky!D31 -> 0 | E12: =Výsledky!$C$27 -> MKK Slovan Galanta | F12: =Výsledky!E31 -> 343 | G12: =Výsledky!F31 -> 185 | H12: =Výsledky!G31 -> 10 | I12: =Výsledky!H31 -> 528 | N12: 5. | O12: KK Zlaté Klasy | P12: 1917 | Q12: 5 | R12: 1 | AE12: 1917 | AF12: 1
B13: 8. | C13: =Výsledky!C30 -> Matej Kubalec | D13: =Výsledky!D30 -> 0 | E13: =Výsledky!$C$27 -> MKK Slovan Galanta | F13: =Výsledky!E30 -> 325 | G13: =Výsledky!F30 -> 199 | H13: =Výsledky!G30 -> 9 | I13: =Výsledky!H30 -> 524 | P13: 2026-03-22 | S13: 2026-03-29 | V13: 2026-04-12 | Y13: 2026-04-19 | AB13: 2026-04-26
B14: 9. | C14: =Výsledky!C7 -> Viktoria Forrová | D14: =Výsledky!D7 -> 0 | E14: =Výsledky!$C$6 -> TJ Rakovice | F14: =Výsledky!E7 -> 350 | G14: =Výsledky!F7 -> 173 | H14: =Výsledky!G7 -> 6 | I14: =Výsledky!H7 -> 523
B15: 10. | C15: =Výsledky!C14 -> Lucia Ondrisová | D15: =Výsledky!D14 -> 0 | E15: =Výsledky!$C$13 -> MKK Piešťany | F15: =Výsledky!E14 -> 363 | G15: =Výsledky!F14 -> 152 | H15: =Výsledky!G14 -> 7 | I15: =Výsledky!H14 -> 515
B16: 11. | C16: =Výsledky!C36 -> Viktor Magyarics | D16: =Výsledky!D36 -> 0 | E16: =Výsledky!$C$34 -> KK Zlaté Klasy | F16: =Výsledky!E36 -> 357 | G16: =Výsledky!F36 -> 148 | H16: =Výsledky!G36 -> 10 | I16: =Výsledky!H36 -> 505
B17: 12. | C17: =Výsledky!C35 -> Lucia Magyarics | D17: =Výsledky!D35 -> 0 | E17: =Výsledky!$C$34 -> KK Zlaté Klasy | F17: =Výsledky!E35 -> 343 | G17: =Výsledky!F35 -> 157 | H17: =Výsledky!G35 -> 8 | I17: =Výsledky!H35 -> 500
B18: 13. | C18: =Výsledky!C15 -> Hana Švorcová | D18: =Výsledky!D15 -> 0 | E18: =Výsledky!$C$13 -> MKK Piešťany | F18: =Výsledky!E15 -> 353 | G18: =Výsledky!F15 -> 136 | H18: =Výsledky!G15 -> 10 | I18: =Výsledky!H15 -> 489 | O18: za 7.
B19: 14. | C19: =Výsledky!C21 -> Marcel Sestak | D19: =Výsledky!D21 -> 0 | E19: =Výsledky!$C$20 -> ŠK Modranka | F19: =Výsledky!E21 -> 318 | G19: =Výsledky!F21 -> 156 | H19: =Výsledky!G21 -> 12 | I19: =Výsledky!H21 -> 474
B20: 15. | C20: =Výsledky!C29 -> Laura Tánczosová | D20: =Výsledky!D29 -> 0 | E20: =Výsledky!$C$27 -> MKK Slovan Galanta | F20: =Výsledky!E29 -> 351 | G20: =Výsledky!F29 -> 113 | H20: =Výsledky!G29 -> 16 | I20: =Výsledky!H29 -> 464
B21: 16. | C21: =Výsledky!C38 -> Michal Jurík | D21: =Výsledky!D38 -> 0 | E21: =Výsledky!$C$34 -> KK Zlaté Klasy | F21: =Výsledky!E38 -> 322 | G21: =Výsledky!F38 -> 139 | H21: =Výsledky!G38 -> 7 | I21: =Výsledky!H38 -> 461 | O21: Tu len stlačiť makro
B22: 17. | C22: =Výsledky!C8 -> Timea Magalová/Dean Kukuč | D22: =Výsledky!D8 -> 0 | E22: =Výsledky!$C$6 -> TJ Rakovice | F22: =Výsledky!E8 -> 330 | G22: =Výsledky!F8 -> 131 | H22: =Výsledky!G8 -> 19 | I22: =Výsledky!H8 -> 461 | O22: jednotlivcov
B23: 18. | C23: =Výsledky!C16 -> Samuel Saxun | D23: =Výsledky!D16 -> 0 | E23: =Výsledky!$C$13 -> MKK Piešťany | F23: =Výsledky!E16 -> 334 | G23: =Výsledky!F16 -> 125 | H23: =Výsledky!G16 -> 23 | I23: =Výsledky!H16 -> 459 | O23: a družstiev
B24: 19. | C24: =Výsledky!C37 -> Adam Tóth | D24: =Výsledky!D37 -> 0 | E24: =Výsledky!$C$34 -> KK Zlaté Klasy | F24: =Výsledky!E37 -> 319 | G24: =Výsledky!F37 -> 132 | H24: =Výsledky!G37 -> 17 | I24: =Výsledky!H37 -> 451
B25: 20. | C25: =Výsledky!C24 -> Daniel Rakicky | D25: =Výsledky!D24 -> 0 | E25: =Výsledky!$C$20 -> ŠK Modranka | F25: =Výsledky!E24 -> 309 | G25: =Výsledky!F24 -> 91 | H25: =Výsledky!G24 -> 31 | I25: =Výsledky!H24 -> 400
